bitfinex-derivatives/quotes_BTCF0:USTF0_20250806
["timestamp","ask_amount","ask_price","bid_price","bid_amount"]
[1754496421185,0.79252102,115500.0,115470.0,0.1298916]
[1754496421186,0.2440673,115480.0,115470.0,0.4480701]
[1754496421397,1.0519573,115480.0,115470.0,0.4480701]
[1754496421580,1.0519573,115480.0,115470.0,0.82644382]
[1754496421779,1.0519573,115480.0,115470.0,0.86709382]
[1754496422392,1.0519573,115480.0,115470.0,0.86809382]
[1754496422591,1.0144373,115480.0,115470.0,0.86809382]
[1754496422787,1.0519573,115480.0,115470.0,0.4031259]
[1754496422989,0.4151323,115470.0,115460.0,0.22514913]
[1754496423181,0.8022212,115470.0,115460.0,0.22514913]
[1754496423386,0.8022212,115470.0,115460.0,0.07074281]
[1754496423588,0.4151623,115450.0,115440.0,0.3363873]
[1754496423895,1.07026271,115450.0,115440.0,0.3363873]
[1754496424390,1.07026271,115450.0,115440.0,0.4021773]
[1754496424693,0.01894041,115450.0,115440.0,0.78055102]
[1754496424902,0.01894041,115450.0,115440.0,1.15892474]
[1754496425085,0.01894041,115450.0,115440.0,1.45892474]
[1754496425284,0.01894041,115450.0,115440.0,1.08055102]
[1754496425485,0.02094041,115450.0,115440.0,1.08055102]
[1754496426083,0.85971271,115450.0,115440.0,0.85087661]
[1754496426288,1.00749271,115450.0,115440.0,0.85087661]
[1754496426588,1.00649271,115450.0,115440.0,0.85087661]
[1754496426898,1.04401271,115450.0,115440.0,0.47250289]
[1754496427791,1.04201271,115450.0,115440.0,0.47250289]
[1754496427993,0.01794041,115450.0,115440.0,0.85087661]
[1754496428491,0.01794041,115450.0,115440.0,1.22925033]
[1754496428682,0.2598045,115470.0,115460.0,0.3639873]
[1754496428888,0.8520628,115470.0,115460.0,0.4021473]
[1754496429093,0.1732047,115470.0,115460.0,0.78052102]
[1754496429595,0.1732047,115470.0,115460.0,0.4021473]
[1754496429996,0.2189047,115470.0,115460.0,0.4021473]
[1754496430286,0.2818447,115470.0,115460.0,0.4021473]
[1754496430996,0.2808447,115470.0,115460.0,0.4021473]
[1754496431295,0.3374847,115470.0,115460.0,0.4021473]
[1754496431594,0.4151447,115470.0,115460.0,0.4021473]
[1754496431796,0.79351842,115470.0,115460.0,0.06749]
[1754496431994,0.79351842,115470.0,115460.0,0.1732072]
[1754496432296,0.2709872,115460.0,115450.0,0.4939]
[1754496432497,1.0497072,115460.0,115450.0,0.53206]
[1754496432789,1.06867181,115460.0,115450.0,0.53206]
[1754496434995,0.01896461,115460.0,115450.0,0.91043372]
[1754496436188,0.19217181,115460.0,115450.0,0.53206]
[1754496436390,0.36608181,115460.0,115450.0,0.53206]
[1754496437097,0.36608181,115460.0,115450.0,0.91043372]
[1754496437594,0.43411181,115460.0,115450.0,0.86712932]
[1754496437798,0.43411181,115460.0,115450.0,0.4887556]
[1754496437996,0.4151623,115450.0,115440.0,0.33702289]
[1754496438194,1.0490023,115450.0,115440.0,0.43434289]
[1754496438495,1.42737602,115450.0,115440.0,0.16315]
[1754496438695,0.4151773,115440.0,115430.0,0.3745623]
[1754496439000,0.4151773,115440.0,115430.0,0.4364023]
[1754496439501,0.43427589,115440.0,115430.0,0.2732523]
[1754496439692,0.43427589,115440.0,115430.0,0.1732523]
[1754496439893,0.44276742,115440.0,115430.0,0.1732523]
[1754496440290,0.2001423,115430.0,115420.0,0.423041]
[1754496440491,0.2001423,115430.0,115420.0,0.3797245]
[1754496440492,1.0480323,115430.0,115420.0,0.3797245]
[1754496440997,1.0480323,115430.0,115420.0,0.3364173]
[1754496441303,1.0490323,115430.0,115420.0,0.3364173]
[1754496441697,1.0490323,115430.0,115420.0,0.3737173]
[1754496442608,1.0500323,115430.0,115420.0,0.4013473]
[1754496444106,1.0500323,115430.0,115420.0,0.16315]
[1754496444398,1.42840602,115430.0,115420.0,0.02684]
[1754496444595,0.2710473,115420.0,115410.0,0.61856669]
[1754496444904,0.4152073,115420.0,115410.0,0.53794679]
[1754496445099,0.4152073,115420.0,115410.0,0.57524679]
[1754496445701,0.24194,115420.0,115410.0,0.95362051]
[1754496445901,0.4152073,115420.0,115410.0,0.95362051]
[1754496446403,0.02975,115420.0,115410.0,0.95362051]
[1754496446700,1.0912373,115430.0,115420.0,0.3364173]
[1754496447002,1.0912373,115430.0,115420.0,0.4013473]
[1754496447402,1.0902373,115430.0,115420.0,0.4013473]
[1754496448107,1.0912373,115430.0,115420.0,0.4013473]
[1754496448298,1.0922373,115430.0,115420.0,0.4013473]
[1754496449504,1.0489231,115430.0,115420.0,0.4013473]
[1754496449798,0.1752631,115430.0,115420.0,0.77972102]
[1754496450004,0.8072923,115430.0,115420.0,0.77972102]
[1754496450205,0.63404,115430.0,115420.0,0.77972102]
[1754496450407,0.9582723,115430.0,115420.0,0.77972102]
[1754496450610,0.8597,115430.0,115420.0,0.4013473]
[1754496450807,0.002,115430.0,115420.0,0.77972102]
[1754496452006,0.001,115430.0,115420.0,0.77972102]
[1754496452207,0.01909859,115440.0,115430.0,0.2390623]
[1754496452400,0.21943589,115440.0,115430.0,0.77594602]
[1754496452711,0.41799589,115440.0,115430.0,0.77594602]
[1754496453407,0.41799589,115440.0,115430.0,0.3975723]
[1754496453810,0.41899589,115440.0,115430.0,0.3975723]
[1754496455415,1.42808961,115440.0,115430.0,0.3609023]
[1754496455617,1.42808961,115440.0,115430.0,0.2370723]
[1754496455920,0.3989122,115430.0,115420.0,0.4225583]
[1754496456423,0.3989122,115430.0,115420.0,0.4629283]
[1754496456613,0.3989122,115430.0,115420.0,0.4073883]
[1754496456813,0.3989122,115430.0,115420.0,0.4629283]
[1754496457014,0.3989122,115430.0,115420.0,0.5275183]
[1754496457413,0.3999122,115430.0,115420.0,0.5275183]
[1754496459924,0.3999122,115430.0,115420.0,0.4842026]
[1754496460424,0.3999122,115430.0,115420.0,0.4475326]
[1754496460615,0.3999122,115430.0,115420.0,0.4196126]
[1754496461017,0.3999122,115430.0,115420.0,0.2165683]
[1754496461216,0.77828592,115430.0,115420.0,0.2165683]
[1754496461417,0.3999122,115430.0,115420.0,0.2165683]
[1754496464121,0.3999122,115430.0,115420.0,0.3104883]
[1754496464523,0.3999122,115430.0,115420.0,0.3359283]
[1754496464725,0.3999122,115430.0,115420.0,0.3762983]
[1754496464922,0.3999122,115430.0,115420.0,0.4129683]
[1754496467620,0.3999122,115430.0,115420.0,0.56737462]
[1754496467923,0.3999122,115430.0,115420.0,0.22021632]
[1754496468424,0.3999122,115430.0,115420.0,0.3329972]
[1754496468628,0.3999122,115430.0,115420.0,0.3696672]
[1754496469128,0.3999122,115430.0,115420.0,0.55199352]
[1754496469326,0.3999122,115430.0,115420.0,0.51532352]
[1754496469535,0.001,115430.0,115420.0,0.93036724]
[1754496470625,0.001,115430.0,115420.0,0.77596092]
[1754496471633,1.04291689,115440.0,115430.0,0.2669822]
[1754496471834,1.04291689,115440.0,115430.0,0.3975722]
[1754496473535,1.04391689,115440.0,115430.0,0.3975722]
[1754496475735,1.04391689,115440.0,115430.0,0.77594592]
[1754496477034,1.00060609,115440.0,115430.0,0.77594592]
[1754496477433,0.07270859,115440.0,115430.0,0.77594592]
[1754496477638,0.70170859,115440.0,115430.0,0.97585712]
[1754496478233,0.07270859,115440.0,115430.0,0.97585712]
[1754496478533,0.22043569,115440.0,115430.0,0.97585712]
[1754496480238,0.04719859,115440.0,115430.0,0.97585712]
[1754496480438,0.02009859,115440.0,115430.0,1.75942528]
[1754496481133,0.02009859,115440.0,115430.0,1.60477712]
[1754496481341,0.001,115440.0,115430.0,1.40486592]
[1754496481842,0.22056381,115460.0,115450.0,0.3916621]
[1754496482041,0.26330381,115460.0,115450.0,1.39895582]
[1754496482242,0.36101381,115460.0,115450.0,0.77003582]
[1754496482738,0.38585381,115460.0,115450.0,0.77003582]
[1754496482936,0.42419381,115460.0,115450.0,0.77003582]
[1754496483542,0.4052292,115460.0,115450.0,0.77003582]
[1754496483940,0.4052292,115460.0,115450.0,0.3916621]
[1754496484141,0.4052292,115460.0,115450.0,0.77003582]
[1754496484343,0.4052292,115460.0,115450.0,0.77103582]
[1754496485345,0.4052292,115460.0,115450.0,0.77955046]
[1754496486648,0.4062292,115460.0,115450.0,0.77855046]
[1754496487148,0.4062292,115460.0,115450.0,0.77003582]
[1754496487653,0.4062292,115460.0,115450.0,0.3916621]
[1754496489246,0.87121222,115460.0,115440.0,0.221291]
[1754496489445,1.41228582,115450.0,115440.0,0.4596982]
[1754496489844,1.0339121,115450.0,115440.0,0.4596982]
[1754496490035,1.05292982,115450.0,115440.0,0.41639]
[1754496490239,1.05292982,115450.0,115440.0,0.3730832]
[1754496490847,1.05292982,115450.0,115440.0,0.52763094]
[1754496491444,1.05492982,115450.0,115440.0,0.52763094]
[1754496491853,1.05492982,115450.0,115440.0,0.52863094]
[1754496492055,1.05492982,115450.0,115440.0,0.55541094]
[1754496492356,0.42624982,115450.0,115440.0,0.59053094]
[1754496492551,0.24745982,115450.0,115440.0,0.96890466]
[1754496492855,0.42624982,115450.0,115440.0,0.96890466]
[1754496493451,0.42624982,115450.0,115440.0,0.59053094]
[1754496494156,0.42624982,115450.0,115440.0,0.4359832]
[1754496494656,0.42824982,115450.0,115440.0,0.4349832]
[1754496496551,0.42824982,115450.0,115440.0,0.58953094]
[1754496498157,0.42824982,115450.0,115440.0,0.96790466]
[1754496498457,0.42824982,115450.0,115440.0,0.58953094]
[1754496498657,0.42824982,115450.0,115440.0,0.96790466]
[1754496499363,0.42824982,115450.0,115440.0,0.58953094]
[1754496499762,0.42824982,115450.0,115440.0,0.4349832]
[1754496502258,0.42824982,115450.0,115440.0,0.58953094]
[1754496502455,0.42824982,115450.0,115440.0,0.49966094]
[1754496502660,0.80662354,115450.0,115440.0,0.32778484]
[1754496503772,0.80662354,115450.0,115440.0,0.1732371]
[1754496503972,0.42824982,115450.0,115440.0,0.1732371]
[1754496504373,0.42824982,115450.0,115440.0,0.2901271]
[1754496504574,0.42824982,115450.0,115440.0,0.3297771]
[1754496504774,0.42824982,115450.0,115440.0,0.3916771]
[1754496504959,0.02301772,115450.0,115440.0,0.77005082]
[1754496505167,0.02301772,115450.0,115440.0,1.39837082]
[1754496506669,0.004,115450.0,115440.0,1.39837082]
[1754496506876,0.004,115450.0,115440.0,1.77674454]
[1754496507067,0.004,115450.0,115440.0,1.39837082]
[1754496507263,0.004,115450.0,115440.0,1.55297886]
[1754496507772,0.4918141,115470.0,115460.0,0.3916471]
[1754496508470,0.4918141,115470.0,115460.0,0.3017771]
[1754496508769,0.4918141,115470.0,115460.0,0.3916471]
[1754496508770,1.1199741,115470.0,115460.0,0.3916471]
[1754496510570,1.1219741,115470.0,115460.0,0.3916471]
[1754496511074,1.1229741,115470.0,115460.0,0.3916471]
[1754496518482,1.1229741,115470.0,115460.0,0.1732071]
[1754496518679,1.50134782,115470.0,115460.0,0.1732071]
[1754496521388,1.04496219,115450.0,115440.0,0.15460804]
[1754496521685,1.04496219,115450.0,115440.0,0.15560804]
[1754496522477,1.04496219,115450.0,115440.0,0.001]
[1754496523087,1.42333591,115450.0,115440.0,0.001]
[1754496523286,0.3976071,115440.0,115430.0,0.15460804]
[1754496523482,0.77598082,115440.0,115430.0,0.15460804]
[1754496523987,0.1732521,115430.0,115420.0,0.20105035]
[1754496524187,0.3976371,115420.0,115410.0,0.22762171]
[1754496525090,0.3976371,115420.0,115410.0,0.26112171]
[1754496525792,0.4061683,115420.0,115410.0,0.22762171]
[1754496526089,0.3976371,115420.0,115410.0,0.43440391]
[1754496526283,0.3996371,115420.0,115410.0,0.46219391]
[1754496526886,0.4006371,115420.0,115410.0,0.46219391]
[1754496527088,0.22737,115420.0,115410.0,0.84056763]
[1754496527288,0.03132,115420.0,115410.0,0.84056763]
[1754496527593,0.003,115420.0,115410.0,0.84056763]
[1754496529395,0.001,115420.0,115410.0,0.84056763]
[1754496529887,0.001,115420.0,115410.0,0.46219391]
[1754496530092,0.001,115420.0,115410.0,0.84056763]
[1754496530296,0.50332615,115430.0,115420.0,0.3923271]
[1754496530495,0.50332615,115430.0,115420.0,0.92530886]
[1754496531295,0.50332615,115430.0,115420.0,0.97175117]
[1754496531488,0.50432615,115430.0,115420.0,0.97175117]
[1754496531790,0.50532615,115430.0,115420.0,0.98044727]
[1754496532494,0.50532615,115430.0,115420.0,0.97175117]
[1754496532697,0.50532615,115430.0,115420.0,1.12624316]
[1754496533891,0.41869735,115430.0,115420.0,0.92519281]
[1754496534398,0.24544525,115430.0,115420.0,0.54681909]
[1754496534598,0.24544525,115430.0,115420.0,0.92519281]
[1754496535797,0.24544525,115430.0,115420.0,0.9337263]
[1754496536192,0.02107525,115430.0,115420.0,0.9337263]
[1754496536790,0.02107525,115430.0,115420.0,1.40647431]
[1754496536994,1.08775139,115450.0,115440.0,0.2638171]
[1754496537196,1.08775139,115450.0,115440.0,0.77067082]
[1754496537392,0.24402009,115450.0,115440.0,0.77067082]
[1754496537596,1.04440219,115450.0,115440.0,0.77067082]
[1754496538598,0.02065009,115450.0,115440.0,0.77067082]
[1754496538792,0.02265009,115450.0,115440.0,0.3922971]
[1754496539002,0.02265009,115450.0,115440.0,1.39779082]
[1754496540796,0.02065009,115450.0,115440.0,1.55228281]
[1754496541191,0.06166009,115450.0,115440.0,1.55228281]
[1754496541597,0.14116009,115450.0,115440.0,1.55228281]
[1754496542600,0.14016009,115450.0,115440.0,1.17390909]
[1754496542801,0.14016009,115450.0,115440.0,1.55228281]
[1754496542998,0.41247219,115450.0,115440.0,0.51328909]
[1754496543200,0.79084591,115450.0,115440.0,0.3909971]
[1754496543399,0.41247219,115450.0,115440.0,0.3909971]
[1754496543802,1.03935219,115450.0,115440.0,0.3909971]
[1754496545903,1.03935219,115450.0,115440.0,0.2360271]
[1754496546203,1.41772591,115450.0,115440.0,0.1732371]
[1754496547305,0.3928371,115440.0,115430.0,0.173243]
[1754496547507,0.77121082,115440.0,115430.0,0.173243]
[1754496547902,0.3928371,115440.0,115430.0,0.173243]
[1754496548802,0.40148487,115440.0,115430.0,0.173243]
[1754496549101,0.40248487,115440.0,115430.0,0.173243]
[1754496549810,0.3928521,115430.0,115420.0,0.45769289]
[1754496550011,1.0194121,115430.0,115420.0,0.54989289]
[1754496550703,1.0194121,115430.0,115420.0,0.45769289]
[1754496551004,1.39778582,115430.0,115420.0,0.32774599]
[1754496551210,1.41729192,115430.0,115420.0,0.173254]
[1754496551407,1.41729192,115430.0,115410.0,0.60423405]
[1754496551610,0.3928671,115420.0,115410.0,0.80243455]
[1754496551820,0.3928671,115420.0,115410.0,0.74842455]
[1754496552010,0.3928671,115420.0,115410.0,0.2599105]
[1754496552805,0.3928671,115420.0,115410.0,0.4140905]
[1754496553007,0.3928671,115420.0,115410.0,0.4462905]
[1754496553203,0.3928671,115420.0,115410.0,0.4721305]
[1754496554915,0.3938671,115420.0,115410.0,0.4721305]
[1754496555221,0.3315871,115420.0,115410.0,0.85050422]
[1754496555420,0.3938671,115420.0,115410.0,0.85050422]
[1754496555621,0.3938671,115420.0,115410.0,0.4721305]
[1754496556123,0.3566371,115420.0,115410.0,0.85050422]
[1754496556323,0.3938671,115420.0,115410.0,0.85050422]
[1754496557322,0.3938671,115420.0,115410.0,0.4399305]
[1754496557515,0.3938671,115420.0,115410.0,0.85050422]
[1754496558124,0.3938671,115420.0,115410.0,0.4721305]
[1754496558523,0.2206,115420.0,115410.0,0.4721305]
[1754496559222,0.2206,115420.0,115410.0,0.85050422]
[1754496560835,0.2206,115420.0,115410.0,0.4721305]
[1754496561127,0.2206,115420.0,115410.0,0.85050422]
[1754496562532,0.3938671,115420.0,115410.0,0.4721305]
[1754496562732,0.2206,115420.0,115410.0,0.85050422]
[1754496563633,0.08989,115420.0,115410.0,0.85050422]
[1754496563927,0.1309,115420.0,115410.0,0.85050422]
[1754496564126,0.18379,115420.0,115410.0,0.85050422]
[1754496564334,0.3938671,115420.0,115410.0,0.85050422]
[1754496564725,0.2206,115420.0,115410.0,0.85050422]
[1754496564920,0.3938671,115420.0,115410.0,0.85050422]
[1754496565125,0.2206,115420.0,115410.0,0.85050422]
[1754496565331,0.3938671,115420.0,115410.0,0.85050422]
[1754496566332,0.2206,115420.0,115410.0,0.85050422]
[1754496566531,0.3938671,115420.0,115410.0,0.85050422]
[1754496567430,0.3938671,115420.0,115410.0,0.2352622]
[1754496567732,0.3938671,115420.0,115410.0,0.3274622]
[1754496567928,0.3938671,115420.0,115410.0,0.3855022]
[1754496570032,0.77224082,115420.0,115410.0,0.1732822]
[1754496570227,0.3938671,115420.0,115410.0,0.2338522]
[1754496570428,0.3938671,115420.0,115410.0,0.3787022]
[1754496571330,1.0195469,115420.0,115410.0,0.3787022]
[1754496571537,1.0195469,115420.0,115410.0,0.75707592]
[1754496571726,1.0181569,115420.0,115410.0,0.2338522]
[1754496572041,1.39653062,115420.0,115410.0,0.2338519]
[1754496572229,1.0181569,115420.0,115410.0,0.2338519]
[1754496572429,1.0181569,115420.0,115410.0,0.3212819]
[1754496572936,1.0181569,115420.0,115410.0,0.3787019]
[1754496576630,0.12968,115420.0,115410.0,0.75707562]
[1754496576824,0.09526847,115440.0,115410.0,0.42169102]
[1754496576825,0.03979,115440.0,115410.0,0.42169102]
[1754496577027,0.2644569,115440.0,115430.0,0.75704562]
[1754496577334,0.13101,115440.0,115430.0,0.75704562]
[1754496577531,0.18461,115440.0,115430.0,0.75704562]
[1754496577839,0.22054,115440.0,115430.0,0.75704562]
[1754496578039,0.22054,115440.0,115430.0,0.3786719]
[1754496578230,0.3937769,115440.0,115430.0,0.3786719]
[1754496578732,0.84594,115440.0,115430.0,0.3786719]
[1754496579337,0.84594,115440.0,115430.0,0.53316389]
[1754496580239,0.84594,115440.0,115430.0,0.91153761]
[1754496581135,0.84582,115440.0,115430.0,0.53316389]
[1754496581334,1.0190569,115440.0,115430.0,0.53316389]
[1754496582236,1.39743062,115440.0,115430.0,0.42243389]
[1754496582441,1.39743062,115440.0,115430.0,0.47574389]
[1754496582834,1.0190569,115440.0,115430.0,0.50646389]
[1754496583035,1.39743062,115440.0,115430.0,0.32774389]
[1754496583236,1.39743062,115440.0,115430.0,0.1732519]
[1754496583438,1.0190569,115440.0,115430.0,0.1732519]
[1754496583642,1.39743062,115440.0,115430.0,0.1732519]
[1754496583835,1.39743062,115440.0,115430.0,0.2606819]
[1754496584031,1.39743062,115440.0,115430.0,0.3212519]
[1754496584243,1.0190569,115440.0,115430.0,0.3786719]
[1754496584445,1.0190569,115440.0,115430.0,0.3479519]
[1754496584640,1.0190569,115440.0,115430.0,0.2338219]
[1754496584841,1.0190569,115440.0,115430.0,0.1983919]
[1754496585343,0.84582,115440.0,115430.0,0.3212519]
[1754496585643,1.0190569,115440.0,115430.0,0.3212519]
[1754496585843,1.39743062,115440.0,115430.0,0.1732519]
[1754496588241,0.84582,115440.0,115430.0,0.3779019]
[1754496589843,1.019057,115440.0,115430.0,0.3779019]
[1754496590039,1.019057,115440.0,115430.0,0.3212519]
[1754496590434,1.019057,115440.0,115430.0,0.1732519]
[1754496590848,1.39743072,115440.0,115430.0,0.1732519]
[1754496591345,0.84582,115440.0,115430.0,0.3512019]
[1754496591545,0.84582,115440.0,115430.0,0.3779019]
[1754496591946,1.019057,115440.0,115430.0,0.3779019]
[1754496593250,1.019057,115440.0,115430.0,0.3479519]
[1754496593544,1.019057,115440.0,115430.0,0.2338219]
[1754496593746,1.019057,115440.0,115430.0,0.2679419]
[1754496594143,1.019057,115440.0,115430.0,0.2338219]
[1754496594339,1.019057,115440.0,115430.0,0.3212519]
[1754496594540,1.39743072,115440.0,115430.0,0.3212519]
[1754496596448,1.019057,115440.0,115430.0,0.3779019]
[1754496597749,1.39743072,115440.0,115430.0,0.3779019]
[1754496598741,1.019057,115440.0,115430.0,0.3779019]
[1754496599950,0.84582,115440.0,115430.0,0.3779019]
[1754496600149,0.18461,115440.0,115430.0,0.3779019]
[1754496600347,0.84534,115440.0,115430.0,0.3779019]
[1754496604247,0.84534,115440.0,115430.0,0.1732519]
[1754496604646,0.84534,115440.0,115430.0,0.3250819]
[1754496604847,0.84534,115440.0,115430.0,0.3543619]
[1754496605760,0.84534,115440.0,115430.0,0.3792519]
[1754496606548,1.0185772,115440.0,115430.0,0.3792519]
[1754496607354,0.84534,115440.0,115430.0,0.3792519]
[1754496621461,1.0185775,115440.0,115430.0,0.3792519]
[1754496621863,0.84534,115440.0,115430.0,0.3792519]
[1754496622067,1.39695142,115440.0,115430.0,0.1732519]
[1754496622962,0.77251142,115440.0,115430.0,0.1732519]
[1754496623163,1.39587142,115440.0,115430.0,0.1732519]
[1754496631866,0.77251142,115440.0,115430.0,0.1732519]
[1754496632066,1.39539142,115440.0,115430.0,0.1732519]
[1754496632772,1.0170177,115440.0,115430.0,0.1732519]
[1754496632973,1.39539142,115440.0,115430.0,0.1732519]
[1754496633168,1.0170177,115440.0,115430.0,0.32774389]
[1754496633369,1.39539142,115440.0,115430.0,0.32774389]
[1754496633566,1.39539142,115440.0,115430.0,0.15449199]
[1754496633969,1.39539142,115440.0,115420.0,0.2598947]
[1754496633970,0.1732524,115430.0,115420.0,0.41438669]
[1754496634173,0.72709612,115430.0,115420.0,0.41438669]
[1754496634472,0.76359612,115430.0,115420.0,0.41438669]
[1754496637576,0.76359612,115430.0,115420.0,0.45030669]
[1754496637772,0.76359612,115430.0,115420.0,0.50452669]
[1754496638878,0.76359612,115430.0,115420.0,0.3742647]
[1754496640877,0.3852224,115430.0,115420.0,0.3742647]
[1754496641073,0.76359612,115430.0,115420.0,0.4360347]
[1754496641272,0.76359612,115430.0,115420.0,0.4604947]
[1754496641472,0.3852224,115430.0,115420.0,0.4604947]
[1754496643376,0.76359612,115430.0,115420.0,0.4604947]
[1754496643679,0.76359612,115430.0,115420.0,0.4326447]
[1754496644581,0.76359612,115430.0,115420.0,0.4081847]
[1754496644978,0.76359612,115430.0,115420.0,0.4360347]
[1754496645480,0.76359612,115430.0,115420.0,0.4604947]
[1754496646877,0.76359612,115430.0,115420.0,0.4326447]
[1754496648171,0.76359612,115430.0,115420.0,0.1732627]
[1754496648378,0.3852379,115420.0,115410.0,0.41440489]
[1754496648573,1.38557162,115420.0,115410.0,0.4082029]
[1754496648779,1.43308156,115420.0,115410.0,0.4082029]
[1754496648981,1.43308156,115420.0,115410.0,0.4360529]
[1754496649582,1.43308156,115420.0,115410.0,0.3927327]
[1754496650382,1.43308156,115420.0,115410.0,0.3648827]
[1754496650683,1.38575826,115420.0,115410.0,0.3648827]
[1754496650881,1.38575826,115420.0,115410.0,0.3927327]
[1754496651274,1.39441067,115420.0,115410.0,0.3927327]
[1754496652182,1.39441067,115420.0,115410.0,0.2165927]
[1754496653086,1.39441067,115420.0,115410.0,0.3309627]
[1754496653285,1.39441067,115420.0,115410.0,0.3648827]
[1754496654187,0.70684,115420.0,115410.0,0.3893427]
[1754496654381,0.83361,115420.0,115410.0,0.4171927]
[1754496655384,0.84225879,115420.0,115410.0,0.4171927]
[1754496655686,0.83361,115420.0,115410.0,0.4171927]
[1754496656490,0.0852,115420.0,115410.0,0.4171927]
[1754496656686,0.74476,115420.0,115410.0,0.79575306]
[1754496656987,0.79711,115420.0,115410.0,0.79575306]
[1754496657185,0.83361,115420.0,115410.0,0.79575306]
[1754496658791,0.0852,115420.0,115410.0,0.79575306]
[1754496658992,0.18179141,115430.0,115410.0,0.79575306]
[1754496658993,0.83337,115430.0,115420.0,0.5038121]
[1754496659290,0.83337,115430.0,115420.0,0.88237246]
[1754496659496,0.83337,115430.0,115420.0,0.5038121]
[1754496660290,0.83333,115430.0,115420.0,0.5038121]
[1754496660691,0.83333,115430.0,115420.0,0.65830409]
[1754496661384,1.0065829,115430.0,115420.0,0.65830409]
[1754496661585,1.0065829,115430.0,115420.0,0.61498819]
[1754496662092,1.01520785,115430.0,115420.0,0.61498819]
[1754496662292,0.84195495,115430.0,115420.0,0.4604962]
[1754496662691,1.01520845,115430.0,115420.0,0.4604962]
[1754496662994,1.01508845,115430.0,115420.0,0.4604962]
[1754496663296,0.84183495,115430.0,115420.0,0.4604962]
[1754496665088,0.83321,115430.0,115420.0,0.4604962]
[1754496665289,0.83089,115430.0,115420.0,0.4565962]
[1754496665594,1.0041435,115430.0,115420.0,0.4565962]
[1754496665800,1.38270386,115430.0,115420.0,0.4042862]
[1754496665988,0.83089,115430.0,115420.0,0.4042862]
[1754496666689,1.0041435,115430.0,115420.0,0.4042862]
[1754496668197,0.83089,115430.0,115420.0,0.4547762]
[1754496669197,0.83941043,115430.0,115420.0,0.4547762]
[1754496669593,1.01266453,115430.0,115420.0,0.4547762]
[1754496670401,0.83941043,115430.0,115420.0,0.4547762]
[1754496674805,1.01266453,115430.0,115420.0,0.4547762]
[1754496675606,0.83941043,115430.0,115420.0,0.4547762]
[1754496676005,0.83089,115430.0,115420.0,0.4547762]
[1754496676201,0.82839,115430.0,115420.0,0.4547762]
[1754496678296,0.82839,115430.0,115420.0,0.60926819]
[1754496678706,0.20715,115430.0,115420.0,0.60926819]
[1754496678902,0.82743,115430.0,115420.0,0.60926819]
[1754496680600,0.82743,115430.0,115420.0,1.03498481]
[1754496680807,1.25298662,115430.0,115420.0,1.03498481]
[1754496681702,1.25298662,115430.0,115420.0,0.88049282]
[1754496681901,1.25298662,115430.0,115420.0,0.68561282]
[1754496682108,1.25298662,115430.0,115420.0,0.82645282]
[1754496682308,1.25298662,115430.0,115420.0,0.68561282]
[1754496682509,1.25298662,115430.0,115420.0,0.82645282]
[1754496682699,1.42624072,115430.0,115420.0,0.68561282]
[1754496682900,1.25298662,115430.0,115420.0,0.68561282]
[1754496683205,1.25298662,115430.0,115420.0,0.74113282]
[1754496683405,1.25298662,115430.0,115420.0,0.68561282]
[1754496683608,1.42624072,115430.0,115420.0,0.68561282]
[1754496684308,1.42624072,115430.0,115420.0,0.2598962]
[1754496685910,1.25298662,115430.0,115420.0,0.2598962]
[1754496686106,1.25298662,115430.0,115420.0,0.2823862]
[1754496686412,1.25298662,115430.0,115420.0,0.82645282]
[1754496686713,0.82727,115430.0,115420.0,0.4007362]
[1754496688912,0.82727,115430.0,115420.0,0.55522819]
[1754496691008,0.82727,115430.0,115420.0,0.58023819]
[1754496691210,0.82814,115430.0,115420.0,0.4508262]
[1754496691808,0.82746,115430.0,115420.0,0.4508262]
[1754496692703,1.20591549,115430.0,115420.0,0.3990062]
[1754496693015,1.37916959,115430.0,115420.0,0.2598962]
[1754496693410,1.20591549,115430.0,115420.0,0.2598962]
[1754496693608,0.82746,115430.0,115420.0,0.4490962]
[1754496695113,0.82746,115430.0,115420.0,0.51804095]
[1754496699720,0.82746,115430.0,115420.0,0.32884095]
[1754496699721,1.37917009,115430.0,115420.0,0.32884095]
[1754496702527,1.37917009,115430.0,115420.0,0.32215685]
[1754496704027,1.37917009,115430.0,115420.0,0.27884095]
[1754496705628,0.75973009,115430.0,115420.0,0.33532095]
[1754496705829,1.37869009,115430.0,115420.0,0.33532095]
[1754496706628,1.37869009,115430.0,115420.0,0.45459294]
[1754496706826,1.37869009,115430.0,115420.0,0.43333294]
[1754496707929,1.37869009,115430.0,115420.0,0.27884095]
[1754496708625,1.42604387,115430.0,115420.0,0.27884095]
[1754496711627,1.42604387,115430.0,115420.0,0.30010095]
[1754496713429,1.0002346,115430.0,115420.0,0.27884095]
[1754496713629,1.42604387,115430.0,115420.0,0.27884095]
[1754496716435,1.0002346,115430.0,115420.0,0.27884095]
[1754496716635,1.42604387,115430.0,115420.0,0.27884095]
[1754496717237,1.42568387,115430.0,115420.0,0.44296095]
[1754496717439,1.42568387,115430.0,115420.0,0.46804095]
[1754496717738,1.42568387,115430.0,115420.0,0.41795095]
[1754496718233,0.80708387,115430.0,115420.0,0.41795095]
[1754496718426,1.42556387,115430.0,115420.0,0.41795095]
[1754496718931,1.25230927,115430.0,115420.0,0.41795095]
[1754496719340,1.25230927,115430.0,115420.0,0.46804095]
[1754496719527,1.21845927,115430.0,115420.0,0.46804095]
[1754496720242,1.25112927,115430.0,115420.0,0.46804095]
[1754496720429,1.42438387,115430.0,115420.0,0.46804095]
[1754496720740,0.82528,115430.0,115420.0,0.89385022]
[1754496721943,1.2705019,115430.0,115420.0,0.64003348]
[1754496722441,1.2705019,115430.0,115420.0,0.48554149]
[1754496722933,1.1847819,115430.0,115420.0,0.43354149]
[1754496723137,0.84417263,115430.0,115420.0,0.48586149]
[1754496723341,1.2699819,115430.0,115420.0,0.64035348]
[1754496724033,1.2699819,115430.0,115420.0,0.48586149]
[1754496724641,1.25056927,115430.0,115420.0,0.46836095]
[1754496724835,1.25056927,115430.0,115420.0,0.62285294]
[1754496725030,1.25056927,115430.0,115420.0,0.59777294]
[1754496726443,1.25056927,115430.0,115420.0,0.44328095]
[1754496729643,1.25056927,115430.0,115420.0,0.46722095]
[1754496730348,1.25056927,115430.0,115420.0,0.44328095]
[1754496730548,1.25056927,115430.0,115420.0,0.33390095]
[1754496731048,1.25056927,115430.0,115420.0,0.36701095]
[1754496731442,1.25056927,115430.0,115420.0,0.41933095]
[1754496733846,1.42382387,115430.0,115420.0,0.05437]
[1754496734046,0.2530196,115420.0,115410.0,0.2166016]
[1754496734252,0.3765046,115410.0,115400.0,0.37110419]
[1754496734443,1.43954676,115410.0,115400.0,0.37110419]
[1754496734638,1.43954676,115410.0,115400.0,0.2166122]
[1754496735143,1.86535603,115410.0,115400.0,0.06964987]
[1754496735347,0.3765347,115390.0,115380.0,0.51476409]
[1754496735645,1.43862612,115390.0,115380.0,0.75791254]
[1754496735845,1.43862612,115390.0,115380.0,0.35554234]